[Event "22nd Alekhine FIDE 2018"]
[Site "Voronezh"]
[Date "2018.06.14"]
[Round "3"]
[White "Efendiev, Enver"]
[Black "Kitaev, Roman"]
[Result "1-0"]
[ECO "B27"]
[WhiteElo "1948"]
[BlackElo "2031"]
[Annotator "NA RC"]
[PlyCount "106"]
[EventDate "2018.??.??"]
[EventType "swiss"]
[EventCountry "RUS"]
[SourceTitle "playchess.com"]
[Source "ChessBase"]
[SourceQuality "1"]
[TimeControl "5400+30"]

1. e4 {[%emt 0:00:00]} c5 {[%emt 0:00:05]} 2. Nf3 {[%emt 0:00:03]} b6 {[%emt 0:00:05]} 3. d4 {[%emt 0:00:12]} cxd4 {[%emt 0:00:07]} 4. Nxd4 {[%emt 0:00:06]} Bb7 {[%emt 0:00:04]} 5. Nc3 {[%emt 0:05:08]} e6 {[%emt 0:00:44] B27: Sicilian: 2 Nf3, unusual Black 2nd moves} (5... a6 6. g3 e6 7. Bg2 Nf6 8. O-O Qc7 9. Re1 d6 10. Nd5 Nxd5 11. exd5 e5 12. f4 Nd7 13. fxe5 Nxe5 {0-1 (59) Safarli,E (2639)-Ponkratov,P (2613) Riadh 2017}) 6. e5 {[%emt 0:16:35]} d5 $146 {[%emt 0:02:26]} ({Predecessor:} 6... f6 7. Bd3 fxe5 8. Qh5+ g6 9. Qxe5 Nf6 10. Bg5 Be7 11. Be4 {1-0 (42) Trey,B (1390)-Muheim,X (1380) St Chely d'Aubrac 2009}) 7. exd6 {[%emt 0:04:05]} Qxd6 {[%emt 0:00:46]} 8. Ncb5 {[%emt 0:07:58]} Qd8 {[%emt 0:03:05]} 9. Bf4 {[%emt 0:01:41]} Na6 {[%emt 0:00:24]} 10. c3 {[%emt 0:13:31]} Be7 {[%emt 0:12:50]} 11. Qa4 {[%emt 0:00:42]} Kf8 {[%emt 0:00:44]} 12. Bc4 {[%emt 0:09:55]} Nc5 {[%emt 0:00:21]} ({Better is} 12... Nf6 $14) 13. Qc2 {[%emt 0:00:20]} Nf6 {[%emt 0:10:27]} 14. Nc7 {[%emt 0:07:20]} ({Better is} 14. O-O $16) 14... Rc8 {[%emt 0:00:29]} 15. Ncxe6+ {[%emt 0:01:35]} ({White should play} 15. O-O-O $14 Rxc7 {[#]} 16. Nxe6+ $1 {[%mdl 512]} fxe6 17. Rxd8+ Bxd8 18. Bxc7 Bxc7 19. f3) 15... fxe6 {[%emt 0:05:21]} 16. b4 {[%emt 0:01:40]} Bd5 {[%emt 0:01:05]} 17. Bxd5 {[%emt 0:00:34]} Qxd5 {[%emt 0:00:15]} ({Minderwertig wäre} 17... exd5 18. bxc5 Qe8 19. O-O $16) 18. bxc5 {[%emt 0:00:35]} Bxc5 {[%emt 0:02:40]} 19. Nf3 {[%emt 0:04:51] [#]} (19. O-O-O $1 $15) 19... Qc4 $1 {[%emt 0:04:00]} 20. Be5 {[%emt 0:05:42]} Ne4 {[%emt 0:04:22]} 21. Qe2 {[%emt 0:03:29]} Bxf2+ {[%emt 0:05:42]} 22. Kf1 {[%emt 0:00:07]} Qxe2+ {[%emt 0:00:48]} 23. Kxe2 {[%emt 0:00:03]} Bc5 {[%emt 0:00:05]} 24. a4 {[%emt 0:04:21]} Ke7 {[%emt 0:03:31]} 25. g3 {[%emt 0:01:27]} Rhg8 {[%emt 0:00:57]} 26. Rhf1 {[%emt 0:01:08]} Bd6 {[%emt 0:02:33]} 27. Kd3 {[%emt 0:01:29]} Bxe5 {[%emt 0:00:54]} 28. Nxe5 {[%emt 0:00:07]} Nd6 {[%emt 0:00:19]} 29. a5 {[%emt 0:00:51]} (29. Kc2 $17) 29... b5 {[%emt 0:00:41]} 30. a6 {[%emt 0:00:24]} (30. Kc2 $17) 30... Rc5 {[%emt 0:00:14]} 31. Rfe1 {[%emt 0:02:29]} Rgc8 {[%emt 0:00:11]} 32. Rac1 {[%emt 0:00:16]} Rd5+ {[%emt 0:00:12]} 33. Kc2 {[%emt 0:00:27]} Nc4 {[%emt 0:02:12]} 34. Nf3 $2 {[%emt 0:00:34]} (34. Nxc4 $17 Rxc4 35. Kb3) 34... Rf8 {[%emt 0:02:58]} 35. Nd4 {[%emt 0:00:38]} Rf2+ {[%emt 0:00:59]} 36. Kb1 {[%emt 0:00:38]} Rd6 {[%emt 0:03:15]} 37. Re2 {[%emt 0:01:12]} Rxe2 $19 {[%emt 0:00:21]} 38. Nxe2 {[%emt 0:00:02]} Rxa6 {[%emt 0:00:17]} 39. Nd4 {[%emt 0:00:35]} Rb6 {[%emt 0:00:52]} 40. Kc2 {[%emt 0:00:26]} g6 {[%emt 0:01:20]} 41. Kb3 {[%emt 0:00:39]} Nd6 {[%emt 0:02:14]} 42. Kb4 {[%emt 0:01:22]} Nb7 {[%emt 0:00:24]} 43. Re1 {[%emt 0:01:00]} a5+ {[%emt 0:00:15]} 44. Ka3 {[%emt 0:00:21]} Nc5 {[%emt 0:01:10]} 45. g4 {[%emt 0:00:16]} b4+ {[%emt 0:00:11]} 46. cxb4 {[%emt 0:00:08]} axb4+ {[%emt 0:00:07]} 47. Ka2 {[%emt 0:00:09]} b3+ {[%emt 0:00:34]} 48. Kb1 {[%emt 0:01:45]} Rd6 {[%emt 0:00:54]} 49. Nb5 {[%emt 0:00:51]} Rd2 {[%emt 0:00:20]} 50. h4 {[%emt 0:00:14]} Nd3 {[%emt 0:00:13]} 51. Rf1 {[%emt 0:00:36]} Rb2+ {[%emt 0:01:03]} 52. Ka1 {[%emt 0:00:29]} Rc2 {[%emt 0:00:17]} 53. Rb1 {[%emt 0:02:05]} Ra2# {[%emt 0:00:10]} 1-0

[Event "22nd Alekhine FIDE 2018"]
[Site "Voronezh"]
[Date "2018.06.15"]
[Round "4"]
[White "Lukovnikov, Alexander"]
[Black "Nesterov, Andrey"]
[Result "1-0"]
[ECO "B71"]
[WhiteElo "2153"]
[BlackElo "2010"]
[Annotator "NA"]
[PlyCount "65"]
[EventDate "2018.??.??"]
[EventType "swiss"]
[EventCountry "RUS"]
[SourceTitle "playchess.com"]
[Source "ChessBase"]
[SourceQuality "1"]
[TimeControl "5400+30"]

{[%evp 8,52,33,25,51,18,16,-19,-3,-33,-25,-31,-22,-17,-11,-22,-18,-4,-24,-60,0,-3,4,0,0,-42,-45,-55,-58,-58,-45,-50,-52,-46,-46,-116,-42,-53,-30,-66,317,339,345,295,341,357,365]} 1. e4 {[%emt 0:00:00]} c5 {[%emt 0:00:29]} 2. Nf3 {[%emt 0:00:00]} d6 {[%emt 0:00:31]} 3. d4 {[%emt 0:00:00]} cxd4 {[%emt 0:00:33]} 4. Nxd4 {[%emt 0:00:00]} Nf6 {[%emt 0:00:20]} 5. Nc3 {[%emt 0:00:00]} g6 {[%emt 0:00:32]} 6. f4 {[%emt 0:00:00]} Nc6 {[%emt 0:09:47]} 7. Nxc6 {[%emt 0:00:16]} bxc6 {[%emt 0:00:06]} 8. e5 {[%emt 0:00:03]} Nd7 {[%emt 0:01:49]} 9. exd6 {[%emt 0:00:08]} exd6 {[%emt 0:00:10] LiveBook: 78 Games} 10. Be3 {[%emt 0:00:01]} Be7 {[%emt 0:06:36]} 11. Bd3 {[%emt 0:00:02]} O-O {[%emt 0:01:10] B71: Sicilian Dragon: 6 f4} 12. O-O {[%emt 0:00:04]} d5 {[%emt 0:00:20]} 13. f5 {[%emt 0:00:06]} Bg5 $146 {[%emt 0:00:25]} ({Predecessor:} 13... Bc5 14. Bxc5 Nxc5 15. fxg6 hxg6 16. Kh1 Qg5 17. Rf3 Rb8 18. Rg3 Qf6 19. Qd2 Nxd3 20. cxd3 {0-1 (42) Apostu,T (2138)-Cirkvencic,F (2209) Brussels 2008}) 14. Bxg5 {[%emt 0:05:46]} Qxg5 {[%emt 0:00:17]} 15. Qe2 {[%emt 0:00:02]} Nc5 {[%emt 0:01:00]} 16. f6 {[%emt 0:01:05]} Nxd3 {[%emt 0:03:16]} 17. Qxd3 {[%emt 0:00:29]} Bf5 {[%emt 0:00:27]} 18. Qd4 {[%emt 0:00:27]} Rfe8 {[%emt 0:06:56]} 19. Rae1 {[%emt 0:03:58]} Bxc2 {[%emt 0:01:25]} 20. h4 {[%emt 0:02:07]} Qg3 {[%emt 0:04:41]} 21. Re7 {[%emt 0:02:43]} (21. Ne2 $1 $11 Qd6 22. Qd2) 21... Bf5 {[%emt 0:02:19]} (21... Rxe7 $17 22. fxe7 Re8) 22. Rf3 {[%emt 0:17:37]} Qd6 {[%emt 0:18:34]} 23. Rfe3 {[%emt 0:03:56]} Be6 $2 {[%emt 0:03:24] [#]} (23... Rxe7 $15 {stays ahead.} 24. Rxe7 a5) 24. R3xe6 $1 {[%emt 0:00:17]} Qxe6 {[%emt 0:04:32]} 25. Rxe6 {[%emt 0:00:19]} Rxe6 {[%emt 0:00:04]} 26. b4 {[%emt 0:01:50]} a6 $18 {[%emt 0:02:14]} 27. Qf4 {[%emt 0:05:05]} h5 {[%emt 0:01:53]} 28. Ne2 {[%emt 0:03:25]} Kh7 {[%emt 0:01:38]} 29. Ng3 {[%emt 0:00:15]} Rd8 {[%emt 0:04:40]} 30. Nf5 gxf5 {[%emt 0:00:07]} 31. Qg5 {[%emt 0:01:19]} Rxf6 {[%emt 0:02:34]} 32. Qxf6 {[%emt 0:00:13]} Rf8 {[%emt 0:00:06]} 33. Qxc6 {[%emt 0:00:12]} 1-0

[Event "22nd Alekhine FIDE 2018"]
[Site "Voronezh"]
[Date "2018.06.15"]
[Round "4"]
[White "Popelyshev, Igor V"]
[Black "Pingin, Artem"]
[Result "0-1"]
[ECO "B20"]
[WhiteElo "2095"]
[BlackElo "1967"]
[Annotator "NA"]
[PlyCount "71"]
[EventDate "2018.??.??"]
[EventType "swiss"]
[EventCountry "RUS"]
[SourceTitle "playchess.com"]
[Source "ChessBase"]
[SourceQuality "1"]
[TimeControl "5400+30"]

{[%evp 8,71,3,0,12,-8,-5,-7,10,-11,14,0,20,13,27,6,16,-22,-14,-59,-64,-60,-5,-52,-23,-46,0,-44,0,-52,-29,-27,32767,32767,32767,32767,32767,32767,32767,32767,32767,32767,32767,32767,32767,32767,-360,-503,-583,-609,32767,32767,32767,32767,-805,-815,-647,-657,-723,32767,32767,32767,32767,-881,-606,-806]} 1. e4 {[%emt 0:03:40]} c5 {[%emt 0:00:02]} 2. Na3 {[%emt 0:00:12]} e6 {[%emt 0:00:15]} 3. f4 {[%emt 0:01:29]} Nf6 {[%emt 0:02:55]} 4. d3 {[%emt 0:03:33]} Nc6 {[%emt 0:00:48]} 5. Nf3 {[%emt 0:00:18]} Be7 {[%emt 0:00:16]} 6. g3 {[%emt 0:02:12]} d5 {[%emt 0:04:41]} 7. e5 {[%emt 0:02:24]} Nd7 {[%emt 0:00:23]} 8. c4 {[%emt 0:01:47]} Nb6 {[%emt 0:01:38]} 9. Bg2 {[%emt 0:03:22]} O-O {[%emt 0:00:54]} 10. O-O {[%emt 0:00:43]} f6 {[%emt 0:05:30]} 11. Qe2 {[%emt 0:01:46]} fxe5 {[%emt 0:08:05]} 12. fxe5 {[%emt 0:02:30]} Bd7 {[%emt 0:03:13]} 13. Nc2 {[%emt 0:06:24]} Be8 {[%emt 0:02:26]} 14. Bh3 {[%emt 0:00:57]} Bf7 {[%emt 0:00:30]} ({Black should try} 14... Qd7 $15) 15. Be3 {[%emt 0:09:31]} h6 {[%emt 0:03:36]} 16. Rf2 {[%emt 0:06:49]} Qc7 {[%emt 0:00:49]} 17. Bd2 {[%emt 0:17:23]} Rae8 {[%emt 0:03:04]} 18. b3 {[%emt 0:03:16]} Bd8 {[%emt 0:06:36]} 19. Raf1 {[%emt 0:04:02]} dxc4 {[%emt 0:02:41]} 20. dxc4 {[%emt 0:02:12]} Bg6 {[%emt 0:00:29]} 21. Bf4 {[%emt 0:04:00]} Nd7 {[%emt 0:00:58]} 22. Re1 {[%emt 0:03:34]} Bh7 {[%emt 0:04:55]} 23. Bg4 {[%emt 0:04:18]} g5 {[%emt 0:01:37]} 24. Bh5 {[%emt 0:05:55]} gxf4 {[%emt 0:01:00]} 25. gxf4 {[%emt 0:01:10]} Re7 {[%emt 0:00:30]} 26. Rg2+ {[%emt 0:01:45]} Kh8 {[%emt 0:00:31]} 27. Ne3 {[%emt 0:01:18]} (27. Rf1 $142) 27... Nd4 {[%emt 0:02:47]} 28. Nxd4 {[%emt 0:03:03]} cxd4 {[%emt 0:00:01]} 29. Ng4 {[%emt 0:00:15]} Nc5 {[%emt 0:00:35]} 30. Nxh6 {[%emt 0:00:25]} Rg7 {[%emt 0:00:47]} 31. f5 {[%emt 0:01:14]} Rxg2+ {[%emt 0:00:33]} 32. Qxg2 {[%emt 0:00:15]} Qg7 {[%emt 0:00:11]} 33. Nf7+ {[%emt 0:00:56]} Rxf7 {[%emt 0:00:22]} 34. Bxf7 {[%emt 0:00:09]} Qxf7 {[%emt 0:00:14]} 35. fxe6 {[%emt 0:00:58]} Qg7 {[%emt 0:00:43]} 36. Rf1 $19 0-1

[Event "22nd Alekhine FIDE 2018"]
[Site "Voronezh"]
[Date "2018.06.15"]
[Round "4"]
[White "Ioffe, Evgeny"]
[Black "Kulpin, Dmitriy"]
[Result "1/2-1/2"]
[ECO "B22"]
[WhiteElo "2079"]
[BlackElo "1954"]
[Annotator "NA"]
[PlyCount "136"]
[EventDate "2018.??.??"]
[EventType "swiss"]
[EventCountry "RUS"]
[SourceTitle "playchess.com"]
[Source "ChessBase"]
[SourceQuality "1"]
[TimeControl "5400+30"]

{[%evp 9,136,-4,14,6,7,3,10,3,0,1,14,0,1,0,0,-10,-3,-32,-24,-22,-17,-15,-25,-24,-23,-31,-19,-25,-29,-39,-20,-43,-31,-32,-24,-22,-19,-14,32767,32767,32767,32767,32767,32767,32767,32767,32767,32767,32767,32767,28,23,39,25,16,30,40,41,32,34,38,33,75,79,89,109,32767,32767,32767,32767,32767,32767,32767,32767,32767,32767,32767,32767,32767,32767,32767,32767,32767,32767,32767,32767,44,51,32767,32767,32767,32767,32767,32767,32767,32767,32767,32767,249,414,361,32767,32767,32767,32767,32767,32767,32767,32767,32767,258,12843,5218,12060,12849,29971,29973,0,0,32767,0,0,0,0,0,0,0,-8,0]} 1. e4 {[%emt 0:00:00]} c5 {[%emt 0:00:04]} 2. c3 {[%emt 0:00:00]} Nf6 {[%emt 0:00:02]} 3. e5 {[%emt 0:00:06]} Nd5 {[%emt 0:00:03]} 4. d4 {[%emt 0:00:08]} cxd4 {[%emt 0:00:03]} 5. cxd4 {[%emt 0:00:12]} e6 {[%emt 0:00:05]} 6. Nf3 {[%emt 0:00:55]} d6 {[%emt 0:00:07]} 7. a3 {[%emt 0:01:35]} Bd7 {[%emt 0:00:09]} 8. Bd3 {[%emt 0:00:47]} Bc6 {[%emt 0:00:36] LiveBook: 377 Games B22: Sizilianisch (Alapin 2.c3)} 9. O-O {[%emt 0:00:41]} Be7 {[%emt 0:00:44]} (9... Nd7 10. Qe2 Be7 11. exd6 Bxd6 12. Nc3 O-O 13. Ne4 Bf4 14. Be3 N7f6 15. Neg5 h6 16. Nh3 Qd6 17. Qd2 Nh5 18. Rae1 Qc7 {½-½ (74) Harikrishna,P (2744)-Artemiev,V (2691) Huaian 2017}) 10. Nc3 {[%emt 0:03:48]} Nd7 {[%emt 0:02:34]} 11. exd6 $146 {[%emt 0:09:41]} ({Vorgänger:} 11. Re1 O-O 12. Ne4 dxe5 13. dxe5 Qc7 14. Nd6 h6 15. Nc4 {½-½ (31) Fortunato,A (1699)-Oliveira,M (1954) Coimbra 2014}) 11... Bxd6 {[%emt 0:00:32]} 12. Ne4 {[%emt 0:00:29]} Be7 {[%emt 0:02:55]} 13. Bg5 {[%emt 0:06:56]} O-O {[%emt 0:05:28]} 14. Re1 {[%emt 0:02:10]} Rc8 {[%emt 0:03:11]} 15. Qd2 {[%emt 0:04:21]} Bxg5 {[%emt 0:03:25]} 16. Nexg5 {[%emt 0:01:14]} h6 {[%emt 0:01:07]} 17. Ne4 {[%emt 0:01:00]} Qc7 {[%emt 0:06:16]} 18. Rac1 {[%emt 0:02:49]} Qf4 {[%emt 0:02:46]} 19. Qe2 {[%emt 0:05:53]} Rfd8 {[%emt 0:03:57]} 20. h3 {[%emt 0:03:39]} N5f6 {[%emt 0:09:53]} 21. g3 {[%emt 0:12:49]} Qb8 {[%emt 0:02:38]} 22. Nc3 {[%emt 0:01:59]} Qd6 {[%emt 0:05:10]} 23. Red1 {[%emt 0:01:32]} Nd5 {[%emt 0:09:05]} 24. Ne4 {[%emt 0:02:34]} Qb8 {[%emt 0:01:00]} 25. Nc5 {[%emt 0:01:26]} Nxc5 {[%emt 0:08:26]} 26. dxc5 {[%emt 0:00:19]} Nf6 {[%emt 0:02:02]} 27. Ne5 {[%emt 0:02:03]} Bd5 {[%emt 0:01:03]} 28. b4 {[%emt 0:01:22]} Bb3 {[%emt 0:12:06]} 29. Re1 {[%emt 0:00:25]} Bd5 {[%emt 0:03:07]} 30. Qe3 {[%emt 0:11:06]} Qc7 {[%emt 0:03:04]} 31. Nc4 {[%emt 0:00:46]} Bxc4 {[%emt 0:03:36]} 32. Bxc4 {[%emt 0:00:10]} a5 {[%emt 0:00:48]} 33. Bf1 {[%emt 0:02:16]} Nd5 {[%emt 0:00:31]} 34. Qb3 {[%emt 0:00:19]} axb4 {[%emt 0:00:29]} 35. axb4 {[%emt 0:00:10]} Qe7 {[%emt 0:02:19]} 36. Bg2 {[%emt 0:00:32]} Rc7 {[%emt 0:01:06]} 37. Rcd1 {[%emt 0:01:28]} Qd7 {[%emt 0:02:38]} 38. Re5 {[%emt 0:03:15]} Qb5 {[%emt 0:00:59]} 39. Bf1 {[%emt 0:02:05]} Qc6 {[%emt 0:01:17]} 40. Bg2 {[%emt 0:00:50]} Rcd7 {[%emt 0:01:09]} 41. Kh2 {[%emt 0:01:15]} b6 {[%emt 0:01:55]} 42. Rc1 {[%emt 0:03:02]} bxc5 {[%emt 0:01:00]} 43. Rxc5 {[%emt 0:00:09]} Qb6 {[%emt 0:00:36]} 44. Re4 {[%emt 0:02:36]} Rb8 {[%emt 0:01:37]} 45. Rec4 {[%emt 0:02:26]} g6 {[%emt 0:00:19]} 46. b5 {[%emt 0:01:05]} Rc7 {[%emt 0:00:45]} 47. Qc2 {[%emt 0:02:09]} Rxc5 {[%emt 0:00:37]} 48. Rxc5 {[%emt 0:00:02]} Kh7 {[%emt 0:00:31]} 49. Bxd5 {[%emt 0:00:35]} exd5 {[%emt 0:00:04]} 50. Rxd5 {[%emt 0:00:13]} Rc8 {[%emt 0:00:28]} 51. Qd2 {[%emt 0:00:53]} Rc5 {[%emt 0:00:38]} 52. Rxc5 {[%emt 0:00:46]} Qxc5 {[%emt 0:00:03]} 53. Qb2 {[%emt 0:00:13]} Qb6 {[%emt 0:00:14]} 54. Kg1 {[%emt 0:00:18]} h5 {[%emt 0:00:11]} 55. h4 {[%emt 0:00:10]} Kg8 {[%emt 0:00:25]} 56. Qb4 {[%emt 0:00:20]} Kg7 {[%emt 0:00:59]} 57. Qc4 {[%emt 0:00:13]} Kf8 {[%emt 0:00:17]} 58. Qd5 {[%emt 0:00:24]} Ke7 {[%emt 0:00:29]} 59. Kg2 {[%emt 0:00:12]} Ke8 {[%emt 0:01:27]} 60. Qc6+ {[%emt 0:02:26]} Qxc6+ {[%emt 0:00:04]} 61. bxc6 {[%emt 0:00:11]} Ke7 {[%emt 0:00:05]} 62. Kf3 {[%emt 0:00:13]} Kd6 {[%emt 0:00:11] [#]} 63. Kf4 $2 {[%emt 0:00:14]} (63. Ke4 $1 {setzt Matt} Kxc6 64. Ke5 Kd7 65. Kf6 Ke8 66. f4 Kf8 67. f5 gxf5 68. Kxf5) 63... f6 $1 {[%emt 0:00:16]} 64. f3 {[%emt 0:03:36]} Kxc6 {[%emt 0:00:08]} 65. g4 {[%emt 0:00:07]} hxg4 {[%emt 0:00:17]} 66. fxg4 {[%emt 0:00:11]} Kd6 {[%emt 0:00:17]} 67. h5 {[%emt 0:03:26]} gxh5 {[%emt 0:00:06]} 68. g5 $11 {[#]} f5 $1 1/2-1/2

[Event "22nd Alekhine FIDE 2018"]
[Site "Voronezh"]
[Date "2018.06.15"]
[Round "4"]
[White "Bobkov, Vadim"]
[Black "Kutyanina, Mariya"]
[Result "1-0"]
[ECO "D35"]
[WhiteElo "2058"]
[BlackElo "2021"]
[Annotator "NA RC"]
[PlyCount "59"]
[EventDate "2018.??.??"]
[EventType "swiss"]
[EventCountry "RUS"]
[SourceTitle "playchess.com"]
[Source "ChessBase"]
[SourceQuality "1"]
[TimeControl "5400+30"]

{[%evp 8,59,14,18,27,15,16,13,17,1,26,14,12,18,20,-7,43,32,102,60,99,102,80,102,102,59,190,47,464,32767,32767,32767,32767,32767,32767,32767,32767,32767,32767,32767,32767,32767,32767,32767,32767,1390,2088,-106,32767,32767,29997,29998,29998,29999]} 1. d4 {[%emt 0:00:00]} d5 {[%emt 0:00:09]} 2. c4 {[%emt 0:00:00]} e6 {[%emt 0:00:14]} 3. Nc3 {[%emt 0:00:00]} Nf6 {[%emt 0:00:14]} 4. cxd5 {[%emt 0:00:00]} exd5 {[%emt 0:00:08]} 5. Bg5 {[%emt 0:00:00]} Be7 {[%emt 0:00:19]} 6. e3 {[%emt 0:00:00]} h6 {[%emt 0:00:11]} 7. Bh4 {[%emt 0:00:00]} c6 {[%emt 0:00:14]} 8. Bd3 {[%emt 0:00:04]} Nbd7 {[%emt 0:00:08]} 9. Nge2 {[%emt 0:00:25]} O-O {[%emt 0:00:21]} 10. Qc2 {[%emt 0:04:58]} Re8 {[%emt 0:03:02]} 11. f3 {[%emt 0:02:46] LiveBook: 73 Games} Qb6 {[%emt 0:10:23] D36: Queen's Gambit Declined: Exchange Variation: Main line (5 Bg5 c6 6 Qc2)} (11... c5 12. O-O a6 13. Rad1 c4 14. Bf5 b5 15. a3 Nb6 16. Bxc8 Rxc8 17. e4 dxe4 18. Bxf6 Bxf6 19. fxe4 Be7 20. e5 {½-½ (33) Bulski,K (2533)-Bokros,A (2482) Slovakia 2016}) 12. O-O {[%emt 0:05:30]} Ng4 {[%emt 0:08:16]} (12... Nf8 $11) 13. Bh7+ {[%emt 0:07:35]} ({Bitte nicht} 13. fxg4 Bxh4 14. Qd2 (14. Bh7+ Kf8 $17) 14... Nf6 $15) 13... Kh8 {[%emt 0:00:20]} 14. fxg4 {[%emt 0:00:09]} Bxh4 {[%emt 0:00:19]} 15. Rxf7 {[%emt 0:00:04]} Nf8 $146 {[%emt 0:07:39]} 16. Nf4 $1 {[%emt 0:16:31]} Bf6 {[%emt 0:09:46]} (16... Nxh7 $16 {was necessary.} 17. Ng6+ Kg8 18. Nxh4 Be6) 17. g5 {[%emt 0:18:39]} (17. Rxf6 $18 gxf6 18. Ng6+ Kg7 19. Nxf8) 17... Bxg5 $2 {[%emt 0:13:56]} (17... hxg5 $14 18. Ng6+ (18. Na4 Qd8 $11) 18... Nxg6 19. Bxg6 Qd8) 18. Rxf8+ {[%emt 0:13:57]} Rxf8 {[%emt 0:00:15]} 19. Ng6+ {[%emt 0:00:01]} Kxh7 {[%emt 0:00:17]} 20. Nxf8+ {[%emt 0:00:02]} Kg8 {[%emt 0:00:21]} 21. Rf1 {[%emt 0:00:05]} Bf6 {[%emt 0:00:36]} 22. Nh7 {[%emt 0:00:59]} Be7 {[%emt 0:02:24]} 23. Qg6 {[%emt 0:00:07]} c5 {[%emt 0:01:15]} 24. Nf6+ {[%emt 0:04:26]} Bxf6 {[%emt 0:07:00]} 25. Nxd5 {[%emt 0:00:24]} Qe6 {[%emt 0:05:19]} 26. Rxf6 {[%emt 0:04:16]} Qxd5 {[%emt 0:01:01]} 27. Qe8+ {[%emt 0:00:41]} Kh7 {[%emt 0:00:36]} 28. Rf8 {[%emt 0:00:10]} g5 {[%emt 0:03:53]} 29. Rh8+ {[%emt 0:00:08]} Kg7 {[%emt 0:00:13]} 30. Qf8+ {[%emt 0:00:04]} 1-0

[Event "22nd Alekhine FIDE 2018"]
[Site "Voronezh"]
[Date "2018.06.15"]
[Round "4"]
[White "Martyntsev, Roman"]
[Black "Artemov, Nikita"]
[Result "0-1"]
[ECO "B60"]
[WhiteElo "2035"]
[BlackElo "1970"]
[Annotator "NA RC"]
[PlyCount "44"]
[EventDate "2018.??.??"]
[EventType "swiss"]
[EventCountry "RUS"]
[SourceTitle "playchess.com"]
[Source "ChessBase"]
[SourceQuality "1"]
[TimeControl "5400+30"]

{[%evp 8,42,29,32767,32767,32767,32767,32767,15,0,23,1,73,76,68,64,88,54,83,83,65,32767,32767,32767,32767,32767,32767,-501,-472,-480,-529,-527,-558,32767,-650,-615,-738]} 1. e4 {[%emt 0:00:00]} c5 {[%emt 0:07:55]} 2. Nf3 {[%emt 0:00:00]} d6 {[%emt 0:00:06]} 3. d4 {[%emt 0:00:04]} cxd4 {[%emt 0:00:05]} 4. Nxd4 {[%emt 0:00:03]} Nf6 {[%emt 0:00:05]} 5. Nc3 {[%emt 0:00:09]} Nc6 {[%emt 0:00:05]} 6. Bg5 {[%emt 0:02:46]} Bd7 {[%emt 0:00:06]} 7. f4 {[%emt 0:01:39]} Qb6 {[%emt 0:05:27] B60: Sicilian: Richter-Rauzer: Unusual Black 6th moves and 6...Bd7 without 7 Qd2} 8. Nb3 {[%emt 0:14:05]} (8. Bxf6 $5 gxf6 9. Nb3 $11) 8... Ng4 {[%emt 0:05:08] LiveBook: 7 Games} 9. Qe2 {[%emt 0:06:05]} h6 $146 {[%emt 0:15:26]} ({Predecessor:} 9... Nd4 $1 $11 10. Qd2 Nxb3 11. axb3 Qe3+ 12. Qxe3 Nxe3 13. Kd2 Nxf1+ 14. Rhxf1 h6 15. Bh4 {½-½ (54) Handke,F (2522)-Tomic,B (2453) Germany 2016}) 10. Nd5 {[%emt 0:02:57]} Qd8 {[%emt 0:00:06]} 11. Bh4 {[%emt 0:00:48]} g5 {[%emt 0:01:47]} 12. h3 {[%emt 0:21:43]} Bg7 {[%emt 0:18:51]} 13. hxg4 {[%emt 0:09:17]} ({Of course not} 13. fxg5 $6 hxg5 14. Bxg5 Bxb2 $11) 13... gxh4 {[%emt 0:00:07]} 14. O-O-O {[%emt 0:08:06]} a5 {[%emt 0:07:21]} 15. e5 {[%emt 0:06:16]} a4 {[%emt 0:08:49]} 16. Nf6+ {[%emt 0:06:19]} Bxf6 {[%emt 0:01:20]} 17. Nd2 {[%emt 0:05:57]} dxe5 {[%emt 0:06:25]} 18. Ne4 {[%emt 0:03:19]} Qb6 {[%emt 0:03:26]} 19. Nxf6+ {[%emt 0:05:41]} exf6 {[%emt 0:00:06]} 20. Rxh4 {[%emt 0:02:36]} a3 {[%emt 0:00:51]} 21. b3 {[%emt 0:00:21]} O-O-O $19 {[%emt 0:00:21]} 22. Qe4 {[%emt 0:01:17]} Qb4 {[%emt 0:01:36]} 0-1